Cogmind - Beta 14 @@@ ROGUE MODE // 2024.12.15 @ 06:57:11 Player: Zoe Result: Destroyed by H-66 Slayer with Gauss Rifle Performance ------------- Evolutions (4) 2000 Regions Visited (6) 1200 Robots Destroyed (17) 85 Value Destroyed (792) 792 Prototype IDs (1) 20 Alien Tech Used (0) 0 Bonus (200) 200 TOTAL SCORE: 4297 Bonus ------- Pacifist 200 Cogmind --------- Core Integrity 0/850 Matter 184/300 Energy 100/100 System Corruption 2% Temperature Cool (9) Movement Core (50) Location -6/Factory Parts ------- > --- POWER (2) -------- (None) > --- PROPULSION (4) --- (None) > --- UTILITY (6) ------ Advanced Terrain Scan Processor > --- WEAPON (3) ------- (None) > --- INVENTORY (5) ---- (None) Peak State ------------ > --- POWER ------------ Improved Ion Engine Micro Nuclear Core > --- PROPULSION ------- Armored Huge Wheel Armored Huge Wheel > --- UTILITY ---------- Improved Heat Sink Small Storage Unit Signal Interpreter Advanced Terrain Scan Processor Medium Armor Plating System Restoration Module > --- WEAPON ----------- Heavy Particle Cannon Heavy Particle Cannon Heavy Assault Rifle > --- INVENTORY -------- Improved Deuterium Engine Target Analyzer Thermal Shield High-powered Shotgun Gauss Rifle Gauss Rifle Flak Gun Flak Gun [Rating: 48] Favorites ----------- Power Improved Ion Engine Engine Improved Ion Engine Power Core Micro Nuclear Core Propulsion Armored Huge Wheel Treads Light Treads Wheel Armored Huge Wheel Hover Unit Gravmag System Utility Small Storage Unit Device Improved Heat Sink Storage Small Storage Unit Processor Signal Interpreter Protection Medium Armor Plating Weapon Heavy Particle Cannon Energy Gun Small Laser Energy Cannon Heavy Particle Cannon Ballistic Gun Heavy Assault Rifle Build | -11 -10 -9 -9 -8 -7 -6 ------- Run | Yrd Mat Mat Min Mat Fac Fac Slots Evolved 8 | . . 2 . 2 2 2 Power 1 | . . . . 1 . . Propulsion 2 | . . 1 . . . 1 Utility 4 | . . 1 . 1 1 1 Weapon 1 | . . . . . 1 . Parts Attached 50 | 4 2 9 2 12 4 17 Power 8 | 1 . 1 . 3 . 3 Engine 7 | 1 . 1 . 3 . 2 Core 1 | . . . . . . 1 Reactor . | . . . . . . . Propulsion 9 | 2 . 2 . 2 . 3 Treads 4 | 2 . 2 . . . . Leg . | . . . . . . . Wheel 3 | . . . . 2 . 1 Hover 2 | . . . . . . 2 Flight . | . . . . . . . Utility 16 | 1 . 5 2 1 3 4 Device 7 | . . 1 1 . 1 4 Storage 1 | 1 . . . . . . Processor 4 | . . 2 1 . 1 . Hackware . | . . . . . . . Protection 4 | . . 2 . 1 1 . Artifact . | . . . . . . . Weapon 17 | . 2 1 . 6 1 7 Energy Gun 2 | . 1 1 . . . . Energy Cannon 2 | . . . . . . 2 Ballistic Gun 13 | . 1 . . 6 1 5 Ballistic Cannon . | . . . . . . . Launcher . | . . . . . . . Special Weapon . | . . . . . . . Impact Weapon . | . . . . . . . Slashing Weapon . | . . . . . . . Piercing Weapon . | . . . . . . . Special Melee Weapon . | . . . . . . . Unidentified Prototypes 1 | . . . 1 . . . Parts Lost 26 | . . 1 . 5 . 20 Power 5 | . . . . 3 . 2 Propulsion 4 | . . . . . . 4 Utility 8 | . . . . 1 . 7 Weapon 9 | . . 1 . 1 . 7 Highest Loss Streak 12 | . . 1 . 2 . 12 To Critical Strikes 1 | . . . . 1 . . Average Slot Usage (%) 78 | . 85 91 100 70 73 73 Engine 8 | . 14 11 11 12 7 5 Treads 8 | . 28 27 33 2 . . Wheel 7 | . . . . 7 7 11 Device 7 | . . 1 2 7 6 11 Storage 7 | . 14 11 11 9 7 5 Processor 11 | . . 11 13 9 14 12 Protection 5 | . . 6 5 5 6 5 Energy Gun 3 | . 14 10 11 . . . Energy Cannon 5 | . . . . . . 10 Ballistic Gun 10 | . 14 11 11 16 23 7 Peak Build Rating 48 | 4 6 11 17 33 33 48 Average Rating 28 | 3 5 8 12 27 31 40 On Entrance 13 | . 4 6 11 17 22 33 Naked Turns . | . . . . . . . Heaviest Build 45 | 8 11 15 15 23 31 45 Greatest Support 60 | 40 40 60 60 60 28 56 Greatest Overweight (x) 7 | . . . . 7 1 3 Average Overweight (x) . | . . . . . . . Largest Inventory Capacity 8 | 8 8 8 8 8 8 8 Average Capacity 7 | 6 8 8 8 8 8 7 Most Carried 8 | 8 8 8 8 8 7 8 Average Carried 6 | 5 7 6 7 6 5 5 Final Capacity 8 | 8 8 8 8 8 8 5 Final Carried 8 | 8 8 8 7 7 6 . Class Distribution -------------------- 50% | Mutant 42% | Tank 7% | Scavenger-Tank Dominant Class ---------------- Mutant | -10/Materials Mutant | -9/Materials Mutant | -9/Mines Mutant | -8/Materials Tank | -7/Factory Tank | -6/Factory Resources | -11 -10 -9 -9 -8 -7 -6 ----------- Run | Yrd Mat Mat Min Mat Fac Fac Matter Collected 925 | 195 . 163 10 391 . 166 Remotely . | . . . . . . . Salvage Created 891 | . . 295 . 351 . 245 Parts 46 | . . 25 . 14 . 7 Haulers Intercepted 1 | . . . . 1 . . Recyclers Shooed . | . . . . . . . Parts Field Recycled . | . . . . . . . Retrieved Matter . | . . . . . . . Parts Self-Destructed . | . . . . . . . Prevented . | . . . . . . . Kills | -11 -10 -9 -9 -8 -7 -6 ------- Run | Yrd Mat Mat Min Mat Fac Fac Combat Hostiles Destroyed 16 | . . 6 . 6 . 4 Guns 12 | . . 5 . 6 . 1 Cannons 3 | . . . . . . 3 AOE 1 | . . 1 . . . . Classes Destroyed 5 | . . 2 . 2 . 1 Hauler 1 | . . . . 1 . . Grunt 8 | . . 3 . 3 . 2 Sentry 5 | . . 3 . 1 . 1 Hunter 2 | . . . . 2 . . Programmer 1 | . . . . . . 1 Best Kill Streak 3 | . . 3 . 2 . 1 Combat Bots Only 3 | . . 3 . 2 . 1 Max Kills in Single Turn 1 | . . 1 . 1 . 1 Gunslinging . | . . . . . . . Exploded 1 | . . 1 . . . . Melee . | . . . . . . . Uniques/NPCs Destroyed . | . . . . . . . Combat | -11 -10 -9 -9 -8 -7 -6 -------- Run | Yrd Mat Mat Min Mat Fac Fac Hostile Shots Fired 421 | . . 48 . 105 . 268 Missed 157 | . . 17 . 33 . 107 Damage Taken 3876 | . . 419 . 1153 . 2304 Core 1164 | . . 80 . 227 . 857 Absorbed by Shields . | . . . . . . . Ignored by Resistances 62 | . . . . . . 62 Core Remaining (%) 87 | 100 100 . 80 58 100 . Volleys Fired 89 | . 1 22 . 41 . 25 Largest 3 | . 2 2 . 2 . 3 Hottest 173 | . 60 60 . 56 . 173 Shots Fired 170 | . 2 40 . 66 . 62 Gun 138 | . 2 40 . 66 . 30 Cannon 32 | . . . . . . 32 Launcher . | . . . . . . . Special . | . . . . . . . Kinetic 119 | . 1 22 . 66 . 30 Thermal 41 | . . 9 . . . 32 Explosive . | . . . . . . . Electromagnetic 10 | . 1 9 . . . . Robot Hit Streak 12 | . 1 12 . 9 . 7 Robot Miss Streak 7 | . 1 3 . 7 . 6 Penetration Max 1 | . . . . 1 . 1 Secondary Targets 2 | . . 2 . . . . Max Gunslinging Chain 1 | . . 1 . . . . Shots Hit Robots 115 | . 1 31 . 44 . 39 Core Hits 52 | . . 13 . 25 . 14 Critical Kills . | . . . . . . . Critical Parts Destroyed 2 | . . . . 2 . . Critical Strikes 2 | . . . . 2 . . Destroy 2 | . . . . 2 . . Melee Attacks . | . . . . . . . Impact . | . . . . . . . Slashing . | . . . . . . . Piercing . | . . . . . . . Sneak Attacks . | . . . . . . . Combat Hostiles . | . . . . . . . Follow-up Attacks . | . . . . . . . Damage Inflicted 1965 | . 10 327 . 778 . 850 Guns 1366 | . 10 291 . 778 . 287 Cannons 562 | . . . . . . 562 Explosions 36 | . . 36 . . . . Melee . | . . . . . . . Ramming 1 | . . . . . . 1 Kinetic 1215 | . 10 140 . 778 . 287 Thermal 698 | . . 136 . . . 562 Explosive . | . . . . . . . Electromagnetic 51 | . . 51 . . . . Impact . | . . . . . . . Slashing . | . . . . . . . Piercing . | . . . . . . . Highest Corruption 2 | . . . . . . 2 Average Corruption 1 | . . . . . . 1 Corruption Purged . | . . . . . . . Corruption Blocked . | . . . . . . . Effects 2 | . . . . . . 2 Parts Rejected 1 | . . . . . . 1 Weapon Failures 1 | . . . . . . 1 Overload Shots . | . . . . . . . Overflow Damage . | . . . . . . . Projectiles . | . . . . . . . Explosions . | . . . . . . . Melee . | . . . . . . . Knockbacks . | . . . . . . . Impact . | . . . . . . . Kinetic . | . . . . . . . Secondary . | . . . . . . . Self-Inflicted Damage . | . . . . . . . Shots . | . . . . . . . Rammed 2 | . . . . . . 2 Targets Rammed 2 | . . . . . . 2 Kicked . | . . . . . . . Crushed . | . . . . . . . Highest Temperature 817 | . 20 59 . 41 . 817 Average Temperature 190 | . 15 23 . 12 . 343 Received Heat Transfer 1357 | . . 192 . 468 . 697 Effects 31 | . . . . . . 31 Shutdowns 6 | . . . . . . 6 Energy Bleed 2 | . . . . . . 2 Interference 6 | . . . . . . 6 Matter Decay 1 | . . . . . . 1 Short Circuit 4 | . . . . . . 4 Damage (minor) 1 | . . . . . . 1 Damage (major) 10 | . . . . . . 10 Damage (core) 1 | . . . . . . 1 Siege Activations . | . . . . . . . Robots Corrupted . | . . . . . . . Combat Hostiles . | . . . . . . . Parts Fried . | . . . . . . . Impact Corruptions . | . . . . . . . Robots Melted . | . . . . . . . Combat Hostiles . | . . . . . . . Parts Melted 1 | . . . . . . 1 Heat Transferred 1089 | . . 275 . . . 814 Parts Sabotaged . | . . . . . . . Parts Stolen . | . . . . . . . Parts Stripped . | . . . . . . . Power Chain Reactions 1 | . . 1 . . . . Alert | -11 -10 -9 -9 -8 -7 -6 ------- Run | Yrd Mat Mat Min Mat Fac Fac Peak Influence 215 | . 15 193 28 215 6 105 Initial 28 | . . 5 28 10 6 2 Average 34 | . 6 107 28 62 6 15 Maximum Alert Level 1 | . . . . 1 . . Low Security (%) 99 | 100 100 100 100 96 100 100 Level 1 . | . . . . 3 . . Level 2 . | . . . . . . . Level 3 . | . . . . . . . Level 4 . | . . . . . . . Level 5 . | . . . . . . . High Security . | . . . . . . . Max Security . | . . . . . . . Squads Dispatched 11 | . . 2 . 1 . 8 Investigation 3 | . . 1 . . . 2 Extermination 2 | . . . . . . 2 Reinforcement 6 | . . 1 . 1 . 4 Assault . | . . . . . . . Garrison . | . . . . . . . Intercept . | . . . . . . . Searches Triggered . | . . . . . . . Construction Impeded . | . . . . . . . Haulers Reinforced 1 | . . . . . . 1 Active Scanning Responses . | . . . . . . . Cargo Convoy Interrupts . | . . . . . . . Stealth | -11 -10 -9 -9 -8 -7 -6 --------- Run | Yrd Mat Mat Min Mat Fac Fac Distress Signals 3 | . . 1 . 1 . 1 Communications Jammed . | . . . . . . . Distress Signals . | . . . . . . . Times Spotted 42 | . 2 9 . 11 . 20 Peak Tracking Total 11 | . 2 3 . 5 . 11 Tactical Retreats 4 | . . 1 . 1 . 2 Traps | -11 -10 -9 -9 -8 -7 -6 ------- Run | Yrd Mat Mat Min Mat Fac Fac Traps Triggered 2 | . . 1 . . . 1 Indirectly . | . . . . . . . Trap Hack Attempts . | . . . . . . . Triggered . | . . . . . . . Disarmed . | . . . . . . . Reprogrammed . | . . . . . . . Reused . | . . . . . . . Traps Extracted . | . . . . . . . Installed . | . . . . . . . Triggered . | . . . . . . . Machines | -11 -10 -9 -9 -8 -7 -6 ---------- Run | Yrd Mat Mat Min Mat Fac Fac Machines Disabled 3 | . . 1 . 2 . . Max in Single Turn 2 | . . 1 . 2 . . Machines Repaired . | . . . . . . . Machines Dismantled . | . . . . . . . Machines Sabotaged . | . . . . . . . Overloaded Fab Kills . | . . . . . . . Hacking | -11 -10 -9 -9 -8 -7 -6 --------- Run | Yrd Mat Mat Min Mat Fac Fac Machines Accessed 8 | . . 2 . 3 1 2 Terminals 6 | . . 2 . 3 1 . Fabricators 1 | . . . . . . 1 Repair Stations . | . . . . . . . Recycling Units . | . . . . . . . Scanalyzers 1 | . . . . . . 1 Garrison Access . | . . . . . . . Total Hacks 20 | . . 2 . 9 1 8 Successful 9 | . . 2 . 2 . 5 Failed 11 | . . . . 7 1 3 Catastrophic . | . . . . . . . Database Lockouts . | . . . . . . . Manual 1 | . . 1 . . . . Terminals 12 | . . 2 . 9 1 . Fabricators 3 | . . . . . . 3 Repair Stations . | . . . . . . . Recycling Units . | . . . . . . . Scanalyzers 5 | . . . . . . 5 Garrison Access . | . . . . . . . Terminal Hacks 4 | . . 2 . 2 . . Record 1 | . . . . 1 . . Unreport Threat 1 | . . 1 . . . . Locate Traps 1 | . . . . 1 . . Hauler Manifests 1 | . . 1 . . . . Fabricator Hacks 1 | . . . . . . 1 Load Schematic 1 | . . . . . . 1 Repair Station Hacks . | . . . . . . . Recycling Unit Hacks . | . . . . . . . Scanalyzer 4 | . . . . . . 4 Insert Component 3 | . . . . . . 3 Analyze 1 | . . . . . . 1 Garrison Access Hacks . | . . . . . . . Unauthorized Hacks . | . . . . . . . Terminals . | . . . . . . . Fabricators . | . . . . . . . Repair Stations . | . . . . . . . Recycling Units . | . . . . . . . Scanalyzers . | . . . . . . . Garrison Access . | . . . . . . . Data Cores Recovered . | . . . . . . . Used . | . . . . . . . Hacking Detections 5 | . . 1 . 1 1 2 Full Trace Events 3 | . . . . 1 . 2 Feedback Events . | . . . . . . . Feedback Blocked . | . . . . . . . Robot Schematics Acquired . | . . . . . . . Robots Built . | . . . . . . . Authchips . | . . . . . . . Time . | . . . . . . . Total Robot Build Rating . | . . . . . . . Part Schematics Acquired 1 | . . . . . . 1 Parts Built . | . . . . . . . Authchips . | . . . . . . . Time . | . . . . . . . Total Part Build Rating . | . . . . . . . Parts Repaired . | . . . . . . . Time . | . . . . . . . Parts Recycled . | . . . . . . . Recycled Matter . | . . . . . . . Retrieved Matter . | . . . . . . . Retrieved Components . | . . . . . . . Parts Scanalyzed 1 | . . . . . . 1 Part Schematics Acquired 1 | . . . . . . 1 Parts Damaged . | . . . . . . . Bothacking | -11 -10 -9 -9 -8 -7 -6 ------------ Run | Yrd Mat Mat Min Mat Fac Fac Used RIF Installer . | . . . . . . . Robots Hacked . | . . . . . . . Non-combat . | . . . . . . . Combat . | . . . . . . . Robot Hacks Applied . | . . . . . . . Relay Couplers Released . | . . . . . . . Fabnet Peak Effective % . | . . . . . . . Robots Rewired . | . . . . . . . Allies Hacked . | . . . . . . . Hacks Repelled . | . . . . . . . Allies | -11 -10 -9 -9 -8 -7 -6 -------- Run | Yrd Mat Mat Min Mat Fac Fac Total Allies . | . . . . . . . Largest Group . | . . . . . . . Highest-Rated Group . | . . . . . . . Highest-Rated Ally . | . . . . . . . Total Orders . | . . . . . . . Ally Attacks . | . . . . . . . Total Damage . | . . . . . . . Kills . | . . . . . . . Allies Corrupted . | . . . . . . . Allies Melted . | . . . . . . . Intel | -11 -10 -9 -9 -8 -7 -6 ------- Run | Yrd Mat Mat Min Mat Fac Fac Robot Analysis Total . | . . . . . . . Derelict Logs Recovered . | . . . . . . . Drone Launches . | . . . . . . . Drone Recoveries . | . . . . . . . Exploration | -11 -10 -9 -9 -8 -7 -6 ------------- Run | Yrd Mat Mat Min Mat Fac Fac Turns Passed 2669 | 86 113 361 230 428 197 1254 Spaces Moved 1467 | 48 67 155 141 233 164 659 Core 91 | 5 . . . 6 . 80 Treads 428 | 43 67 155 141 22 . . Legs . | . . . . . . . Wheels 936 | . . . . 205 164 567 Hover 12 | . . . . . . 12 Flight . | . . . . . . . Fastest Speed 50 | 50 160 160 160 100 100 50 Average Speed 119 | 148 160 160 160 113 114 98 Slowest Speed 400 | 160 160 160 160 400 115 200 Overloaded Moves . | . . . . . . . Propulsion Burnouts . | . . . . . . . Robots Hopped . | . . . . . . . Cave-ins Triggered . | . . . . . . . Exploration Rate (%) 15 | 4 15 12 49 14 4 13 Regions Visited 6 Branch Regions 1 Pre-discovered Areas . | . . . . . . . Known Exits Taken 4 | . . 1 1 1 1 . Unknown Exits Taken 2 | 1 1 . . . . . Scrap Searched 1 | . . . 1 . . . Spaces Dug . | . . . . . . . Terrain Destroyed 56 | . . 11 . 45 . . Melee . | . . . . . . . Projectile 2 | . . . . 2 . . AOE 54 | . . 11 . 43 . . Terrain Rammed . | . . . . . . . Walls Destroyed . | . . . . . . . Machines Disabled . | . . . . . . . Actions | -11 -10 -9 -9 -8 -7 -6 --------- Run | Yrd Mat Mat Min Mat Fac Fac Total 2230 | 62 71 234 146 332 173 1212 Wait 554 | . . 35 . 24 3 492 Move 1461 | 47 66 154 140 232 163 659 Hop . | . . . . . . . Pick Up 47 | 11 2 7 2 12 3 10 Fast Attach 4 | 1 . 2 . 1 . . Attach 36 | 3 2 4 1 6 4 16 Detach 5 | . . 2 . . . 3 Swap 10 | . . 3 1 5 . 1 Drop 19 | . . 5 2 11 . 1 Fire 89 | . 1 22 . 41 . 25 Melee . | . . . . . . . Ram 2 | . . . . . . 2 Kick . | . . . . . . . Crush . | . . . . . . . Escape Stasis 3 | . . . . . . 3 Rewire . | . . . . . . . Trap . | . . . . . . . Miscellaneous . | . . . . . . . Route ------- -11/Scrapyard -10/Materials -9/Materials -9/Mines -8/Materials -7/Factory -6/Factory (discovered 1 exit: [*Low]) History --------- Turn | Location | Event 8 | -11/Scrapyard | Discovered new exit (range 15) 87 | -11/Scrapyard | Entered Materials 149 | -10/Materials | Discovered new exit (range 15) 200 | -10/Materials | Entered another Materials area 200 | -9/Materials | Evolved 2 slots: Propulsion x1, Utility x1 333 | -9/Materials | Build established: Mutant 509 | -9/Materials | Discovered new exit (range 16) 559 | -9/Materials | Identified exit to Mines 561 | -9/Materials | Entered Mines 574 | -9/Mines | Met a Derelict bent on vengeance 726 | -9/Mines | Found a damaged Exp. Sensor Array with a note attached 729 | -9/Mines | Found Prototype Device 732 | -9/Mines | Identified Exp. Sensor Array 769 | -9/Mines | Discovered new exit (range 15) 789 | -9/Mines | Identified exit to Materials 791 | -9/Mines | Entered Materials 791 | -8/Materials | Evolved 2 slots: Power x1, Utility x1 1205 | -8/Materials | Discovered new exit (range 10) 1216 | -8/Materials | Identified exit to Factory 1219 | -8/Materials | Entered Factory 1219 | -7/Factory | Evolved 2 slots: Utility x1, Weapon x1 1340 | -7/Factory | Discovered new exit (range 12) 1414 | -7/Factory | Identified exit to Factory 1416 | -7/Factory | Entered another Factory area 1416 | -6/Factory | Evolved 2 slots: Propulsion x1, Utility x1 1518 | -6/Factory | Build established: Tank 2580 | -6/Factory | Lost 12 parts (2p2n5u3w) 2588 | -6/Factory | Discovered new exit (range 15) 2635 | -6/Factory | Core integrity fell below 50% 2663 | -6/Factory | Lost 8 parts (2n2u4w) 2663 | -6/Factory | Core integrity fell below 20% 2670 | -6/Factory | Destroyed by H-66 Slayer with Gauss Rifle Last Messages --------------- Gravmag System destroyed. Acquired Lgt. Angular Momentum Engine. Slug penetrates Wall. Hpw. Shotgun destroyed. Slug penetrates Wall. Thermal Shield destroyed. Gravmag System destroyed. System corrupted: Flak Gun jammed. System corrupted: Lgt. Angular Momentum Engine rejected. Slug penetrates Wall. Flak Gun destroyed. Slug penetrates Wall. Wall collapses. Critical hit (Burn: +50). ALERT: Suspicious intruders detected, dispatching Cutter reinforcements to area. M-13 Machinist repairs G-67 Veteran. M-13 Machinist repairs G-50 Soldier. Slug penetrates Subcomponent Replicator. Map ----- +----------------------------------------------------+ | ???????????# #????"""????????????????????????? | | ???????????# #????""?????????????????????????? | | ???????????+ #???? ?????????????????????????? | | ???????????# #???#+#????#?#??????????????????? | | ???????????# ##### ##### ? ??????????????? | | ???????#+#?# ^ ! ] ????????????????? | | ??????## ### ?????????????????? | | ??????# ^ """"" #??????????????????? | | ####### ""Y"""%#??????????????????? | | ! "#??????????????????? | | ############ [ #??????????????????? | | ???????????# [ ![ #??????????????????? | | ???????????# ###"#+###### #??????????????????? | | ???????????# #?# #??????????????????????? | | ???????????# #?#= """ #??????????????????????? | | ???????????# #?# """ #??????????????????????? | | ???????????# #?# R" #??????????????????????? | | ???????????# #?#* """ #??????????????????????? | | ???????????# #?# "" #??????????????????????? | | #??????????# #?# Y #??????????????????????? | | +??????????# #?# """ #??????????????????????? | | #??????????# #?#g """g#??????????????????????? | | ???????????# #?# """ #??????????????????????? | | ???????????# #?# "" #??????????????????????? | | ???????????? ??# h"" #??????????????????????? | | ???????????????????# g @#??????????????????????? | | ???????????????????########??????????????????????? | | #######+?????????????????????????????????????????? | | ??????????????????????????????????????? | | ??????????????????????????????????????? | | ???H??????????????????????????????????? | | ??????????????????????????????????????? | | ???????????????????????????????????????? | | #######+##???????????????????????????????????????? | | ?????????????????????????????????????????????????? | | ?????????????????????????????????????????????????? | | ?????????????????????????????????????????????????? | | ?????????????????????????????????????????????????? | | ?????????????????????????????????????????????????? | | ?????????????????????????????????????????????????? | | ?????????????????????????????????????????????????? | | ?????????????????????????????????????????????????? | | ?????????????????????????????????????????????????? | | ?????????????????????????????????????????????????? | | ?????????????????????????????????????????????????? | | ?????????????????????????????????????????????????? | | ?????????????????????????????????????????????????? | | #####################????????????????????????????? | | # #????????????????????????????? | | #""" """ #????????????????????????????? | +----------------------------------------------------+ Best States ------------- Heat Dissipation 51 Energy Generation 22 Energy Capacity 455 Matter Stores 300 Matter Capacity 300 Sight Range 16 Robot Scan Range 20 Terrain Scan Density 210 Armor Coverage 225 Resistance: TH 20 Evasion (%) 50 Recoil Reduction 3 Salvage Targeting 1 Item Schematics ----------------- Hpw. Shotgun | -6/Factory | Scanalyzed Robot Schematics ------------------ None Fabricated ------------ Nothing Alien Tech Used ----------------- None Achievements -------------- Everything Is Under Control More Dakka Please Please Form A Line Challenges ------------ None Game ------ Seed DamperHeartBeamcaster Manual? 0 Play Time 00:32:17 Cumulative 2.5 hours Start 2024.12.15 @ 06:24:28 End 2024.12.15 @ 06:57:11 Sessions 1 Manual Loads 0 Difficulty Rogue Special Mode None Game No. 6 Rogue 3 Adventurer 3 Explorer 0 Win Type - Total 0 Types 0/0/0/0/0/0/0/0/0 Lore% 3 Gallery% 7 Achievement% 8 Wizard Run 0 Options --------- Layout 1 ASCII 0 Keyboard 0 Movement Mouse Keybinds 0 Fullscreen 1 Font 24/Smallcaps Map View 50x35 Zoom Use 11% Tactical HUD 0 Map Filters NONE Filters NONE Steam 1 RUN: 2e233880-9b42-4753-aef4-9dc8a04da0ed